bitfinex-derivatives/quotes_BNBF0:USTF0_20250710
["timestamp","ask_amount","ask_price","bid_price","bid_amount"]
[1752141395563,1.50295713,671.44,670.6,0.25925457]
[1752141395763,1.05376458,671.74,670.6,0.25925457]
[1752141395973,2.55653421,671.73,670.6,0.25925457]
[1752141396166,1.50276963,671.72,670.6,0.25925457]
[1752141396365,1.50276963,671.71,670.6,0.25925457]
[1752141396565,1.50276963,671.7,670.6,0.25925457]
[1752141396868,1.6667806,671.76,670.6,0.25925457]
[1752141396869,1.50276963,671.69,670.6,0.25925457]
[1752141397167,1.50276963,671.68,670.6,0.25925457]
[1752141397367,1.50276963,671.67,670.6,0.25925457]
[1752141397564,1.6667806,671.75,670.6,0.25925457]
[1752141397565,1.50276963,671.66,670.6,0.25925457]
[1752141397769,1.50276963,671.65,670.6,0.25925457]
[1752141397968,1.50276963,671.64,670.6,0.25925457]
[1752141398165,1.50276963,671.63,670.6,0.25925457]
[1752141398369,1.50276963,671.62,670.6,0.25925457]
[1752141398665,1.50276963,671.61,670.6,0.25925457]
[1752141398869,1.50276963,671.6,670.6,0.25925457]
[1752141399165,1.50276963,671.59,670.6,0.25925457]
[1752141399369,1.50276963,671.58,670.6,0.25925457]
[1752141399565,1.50276963,671.57,670.6,0.25925457]
[1752141399766,1.50276963,671.56,670.6,0.25925457]
[1752141399970,1.50276963,671.55,670.6,0.25925457]
[1752141400171,1.50276963,671.54,670.6,0.25925457]
[1752141400466,1.50276963,671.53,670.6,0.25925457]
[1752141400671,1.50276963,671.52,670.6,0.25925457]
[1752141400869,1.50276963,671.51,670.6,0.25925457]
[1752141401068,1.50276963,671.5,670.6,0.25925457]
[1752141401271,1.50276963,671.49,670.6,0.25925457]
[1752141401470,1.50276963,671.48,670.6,0.25925457]
[1752141401672,1.50276963,671.47,670.6,0.25925457]
[1752141401968,1.50276963,671.46,670.6,0.25925457]
[1752141402174,1.50276963,671.45,670.6,0.25925457]
[1752141402370,1.50276963,671.44,670.6,0.25925457]
[1752141402573,1.50276963,671.43,670.6,0.25925457]
[1752141402769,1.05376458,671.75,670.6,0.25925457]
[1752141402971,1.50893847,671.74,670.6,0.25925457]
[1752141403270,1.50893847,671.73,670.6,0.25925457]
[1752141403478,1.50893847,671.72,670.6,0.25925457]
[1752141403678,1.50893847,671.71,670.6,0.25925457]
[1752141403974,1.50893847,671.7,670.6,0.25925457]
[1752141404178,1.50893847,671.69,670.6,0.25925457]
[1752141404374,1.50893847,671.68,670.6,0.25925457]
[1752141404673,1.50893847,671.67,670.6,0.25925457]
[1752141404876,1.50893847,671.66,670.6,0.25925457]
[1752141405174,1.50893847,671.65,670.6,0.25925457]
[1752141405379,1.50893847,671.64,670.6,0.25925457]
[1752141405579,1.50893847,671.63,670.6,0.25925457]
[1752141405880,1.50893847,671.62,670.6,0.25925457]
[1752141406175,1.50893847,671.61,670.6,0.25925457]
[1752141406379,1.50893847,671.6,670.6,0.25925457]
[1752141406581,1.50893847,671.59,670.6,0.25925457]
[1752141406776,1.50893847,671.58,670.6,0.25925457]
[1752141406979,1.50893847,671.57,670.6,0.25925457]
[1752141407180,1.50893847,671.56,670.6,0.25925457]
[1752141407379,1.50893847,671.55,670.6,0.25925457]
[1752141407578,1.50893847,671.54,670.6,0.25925457]
[1752141407781,1.50893847,671.53,670.6,0.25925457]
[1752141407980,1.50893847,671.52,670.6,0.25925457]
[1752141408179,1.50893847,671.51,670.6,0.25925457]
[1752141408378,1.50893847,671.5,670.6,0.25925457]
[1752141408578,1.50893847,671.49,670.6,0.25925457]
[1752141408781,1.50893847,671.48,670.6,0.25925457]
[1752141408981,1.50893847,671.47,670.6,0.25925457]
[1752141409179,1.50893847,671.46,670.6,0.25925457]
[1752141409381,1.50893847,671.45,670.6,0.25925457]
[1752141409584,1.05442573,671.73,670.6,0.25925457]
[1752141409884,4.2300152,671.72,670.6,0.25925457]
[1752141410181,2.5632346,671.71,670.6,0.25925457]
[1752141410382,2.5632346,671.7,670.6,0.25925457]
[1752141410582,2.5632346,671.69,670.6,0.25925457]
[1752141410779,2.5632346,671.68,670.6,0.25925457]
[1752141410984,2.5632346,671.67,670.6,0.25925457]
[1752141411181,2.5632346,671.66,670.6,0.25925457]
[1752141411481,2.56274001,671.65,670.6,0.25925457]
[1752141411683,2.56274001,671.64,670.6,0.25925457]
[1752141411886,2.56274001,671.63,670.6,0.25925457]
[1752141412084,2.56274001,671.62,670.12,5.57867212]
[1752141412280,2.56274001,671.61,670.12,5.57867212]
[1752141412485,2.56274001,671.6,670.18,0.25942464]
[1752141412784,2.56274001,671.59,670.18,0.25942464]
[1752141412983,2.56274001,671.58,670.18,0.25942464]
[1752141413184,2.56274001,671.57,670.18,0.25942464]
[1752141413381,2.56274001,671.56,670.18,0.25942464]
[1752141413583,2.56274001,671.55,670.18,0.25942464]
[1752141413785,2.56274001,671.54,670.18,0.25942464]
[1752141413981,2.56274001,671.53,670.18,0.25942464]
[1752141414182,2.56274001,671.52,670.18,0.25942464]
[1752141414482,2.56274001,671.51,670.18,0.25942464]
[1752141414681,2.56274001,671.5,670.18,0.25942464]
[1752141414982,2.56274001,671.49,670.18,0.25942464]
[1752141415184,2.56274001,671.48,670.18,0.25942464]
[1752141415384,2.56274001,671.47,670.18,0.25942464]
[1752141415681,2.56274001,671.46,670.18,0.25942464]
[1752141415884,2.56274001,671.45,670.18,0.25942464]
[1752141416084,2.56274001,671.44,670.18,0.25942464]
[1752141416286,2.56274001,671.43,670.18,0.25942464]
[1752141416587,2.56274001,671.42,670.18,0.25942464]
[1752141416786,2.56274001,671.41,670.18,0.25942464]
[1752141417086,1.50880887,671.4,670.18,0.25942464]
[1752141417386,2.5588107,671.39,670.18,0.25942464]
[1752141417585,2.5588107,671.38,670.18,0.25942464]
[1752141417782,2.5588107,671.37,670.18,0.25942464]
[1752141417986,2.5588107,671.36,670.18,0.25942464]
[1752141418186,2.5588107,671.35,670.18,0.25942464]
[1752141418384,2.5588107,671.34,670.18,0.25942464]
[1752141418586,2.5588107,671.33,670.18,0.25942464]
[1752141418784,2.5588107,671.32,670.18,0.25942464]
[1752141418986,1.6667806,671.24,670.18,0.25942464]
[1752141419187,2.5560788,671.23,670.18,0.25942464]
[1752141419387,2.5560788,671.22,670.18,0.25942464]
[1752141419585,2.5560788,671.21,670.18,0.25942464]
[1752141419787,1.6667806,671.17,670.18,0.25942464]
[1752141419988,2.5560788,671.16,670.18,0.25942464]
[1752141420289,2.5560788,671.15,670.18,0.25942464]
[1752141420490,2.5560788,671.14,670.18,0.25942464]
[1752141420690,2.5560788,671.13,670.18,0.25942464]
[1752141420889,2.5560788,671.12,670.18,0.25942464]
[1752141421091,2.5560788,671.11,670.18,0.25942464]
[1752141421291,2.5560788,671.1,670.18,0.25942464]
[1752141421488,2.5560788,671.09,670.18,0.25942464]
[1752141421688,2.5560788,671.08,670.18,0.25942464]
[1752141421888,2.5560788,671.07,670.18,0.25942464]
[1752141422093,2.5560788,671.06,670.18,0.25942464]
[1752141422391,2.5560788,671.05,670.18,0.25942464]
[1752141422585,2.5560788,671.04,670.18,0.25942464]
[1752141422788,2.5560788,671.03,670.18,0.25942464]
[1752141422989,2.5560788,671.02,670.18,0.25942464]
[1752141423291,2.5560788,671.01,670.18,0.25942464]
[1752141423489,2.5560788,671.0,670.18,0.25942464]
[1752141423692,1.50171409,670.99,670.18,0.25942464]
[1752141423889,1.50171409,670.98,670.18,0.25942464]
[1752141424092,1.6667806,671.26,670.18,0.25942464]
[1752141424292,2.54884661,671.25,670.18,0.25942464]
[1752141424492,2.54884661,671.24,670.18,0.25942464]
[1752141424689,2.54884661,671.23,670.18,0.25942464]
[1752141424889,2.54884661,671.22,670.18,0.25942464]
[1752141425092,2.54872655,671.21,670.18,0.25942464]
[1752141425293,2.54872655,671.2,670.18,0.25942464]
[1752141425592,2.54872655,671.19,670.18,0.25942464]
[1752141425790,2.54872655,671.18,670.18,0.25942464]
[1752141425994,2.54872655,671.17,670.18,0.25942464]
[1752141426194,2.54872655,671.16,670.18,0.25942464]
[1752141426391,2.54872655,671.15,670.18,0.25942464]
[1752141426592,2.54872655,671.14,670.18,0.25942464]
[1752141426791,2.54872655,671.13,670.18,0.25942464]
[1752141426991,2.54872655,671.12,670.18,0.25942464]
[1752141427192,2.54872655,671.11,670.18,0.25942464]
[1752141427391,1.04701372,671.1,670.18,0.25942464]
[1752141427596,1.50171283,671.11,670.18,0.25942464]
[1752141427896,3.33841602,671.6,670.18,0.25942464]
[1752141428094,1.04660491,671.77,670.18,0.25942464]
[1752141428297,1.04660491,671.76,670.18,0.25942464]
[1752141428593,1.04660491,671.75,670.18,0.25942464]
[1752141428793,1.04660491,671.74,670.18,0.25942464]
[1752141429092,1.04660491,671.73,670.18,0.25942464]
[1752141429294,1.04660491,671.72,670.18,0.25942464]
[1752141429493,1.04660491,671.71,670.18,0.25942464]
[1752141429691,1.04660491,671.7,670.18,0.25942464]
[1752141429996,1.04660491,671.69,670.18,0.25942464]
[1752141430191,1.04660491,671.68,670.18,0.25942464]
[1752141430393,1.04660491,671.67,670.18,0.25942464]
[1752141430597,1.04660491,671.66,670.18,0.25942464]
[1752141430796,1.04660491,671.65,670.18,0.25942464]
[1752141430993,1.04660491,671.64,670.18,0.25942464]
[1752141431196,1.04660491,671.63,670.18,0.25942464]
[1752141431396,1.04660491,671.62,670.18,0.25942464]
[1752141431596,1.04660491,671.61,670.18,0.25942464]
[1752141431901,1.65271734,671.43,670.18,0.25942464]
[1752141432095,2.54507019,671.42,670.18,0.25942464]
[1752141432293,2.54507019,671.41,669.27,5.52994749]
[1752141432497,2.54507019,671.4,669.27,5.52994749]
[1752141432698,2.54507019,671.39,669.27,5.52994749]
[1752141432898,2.54507019,671.38,669.25,5.52994749]
[1752141433097,2.54507019,671.37,669.25,5.52994749]
[1752141433297,2.54507019,671.36,669.23,5.52994749]
[1752141433498,2.54507019,671.35,669.23,5.52994749]
[1752141433697,2.54507019,671.34,669.23,5.52994749]
[1752141433896,2.54507019,671.33,669.27,5.52994749]
[1752141434096,2.54507019,671.32,669.27,5.52994749]
[1752141434300,2.54507019,671.31,669.28,5.52994749]
[1752141434502,2.54507019,671.3,669.28,5.52994749]
[1752141434697,2.54507019,671.29,669.28,5.52994749]
[1752141434901,2.54507019,671.28,669.28,5.52994749]
[1752141435098,2.54507019,671.27,669.27,5.52994749]
[1752141435303,2.54507019,671.26,669.27,5.52994749]
[1752141435604,2.54575044,671.25,669.36,5.52994749]
[1752141435803,2.54575044,671.24,669.36,5.52994749]
[1752141436003,2.54575044,671.23,669.36,5.52994749]
[1752141436207,1.49846528,671.22,669.36,5.52994749]
[1752141436402,1.49846528,671.21,669.36,5.52994749]
[1752141436699,1.49846528,671.2,669.82,0.25945172]
[1752141437000,1.49846528,671.19,669.82,0.25945172]
[1752141437205,0.25945172,671.28,669.82,0.25945172]
[1752141437404,1.49738916,671.27,669.82,0.25945172]
[1752141437702,1.49738916,671.26,669.82,0.25945172]
[1752141437900,1.49738916,671.25,669.82,0.25945172]
[1752141438201,1.49738916,671.24,669.82,0.25945172]
[1752141438406,1.49738916,671.23,669.82,0.25945172]
[1752141438599,1.49738916,671.22,669.82,0.25945172]
[1752141438801,1.49738916,671.21,669.82,0.25945172]
[1752141439105,1.49738916,671.2,669.82,0.25945172]
[1752141439300,1.49738916,671.19,669.82,0.25945172]
[1752141439502,0.25945172,671.28,669.82,0.25945172]
[1752141439705,1.49787553,671.27,669.82,0.25945172]
[1752141439906,1.49787553,671.26,669.82,0.25945172]
[1752141440101,0.25944495,671.36,669.82,0.25945172]
[1752141440302,1.49788936,671.35,669.82,0.25945172]
[1752141440502,1.49788936,671.34,669.82,0.25945172]
[1752141440701,1.49788936,671.33,669.82,0.25945172]
[1752141440908,1.49788936,671.32,669.82,0.25945172]
[1752141441109,1.49788936,671.31,669.82,0.25945172]
[1752141441304,1.49788936,671.3,669.82,0.25945172]
[1752141441605,1.49788936,671.29,669.82,0.25945172]
[1752141441803,1.49788936,671.28,669.82,0.25945172]
[1752141442003,1.49788936,671.27,669.82,0.25945172]
[1752141442207,1.49788936,671.26,669.82,0.25945172]
[1752141442408,1.49788936,671.25,669.82,0.25945172]
[1752141442706,1.49788936,671.24,669.82,0.25945172]
[1752141442906,0.25936954,671.48,669.82,0.25945172]
[1752141443104,1.49858541,671.47,669.82,0.25945172]
[1752141443308,1.49858541,671.46,669.82,0.25945172]
[1752141443508,1.49858541,671.45,669.82,0.25945172]
[1752141443703,1.49858541,671.44,669.82,0.25945172]
[1752141443904,1.49858541,671.43,669.82,0.25945172]
[1752141444106,1.49858541,671.42,669.82,0.25945172]
[1752141444305,1.49858541,671.41,669.82,0.25945172]
[1752141444506,1.49858541,671.4,669.82,0.25945172]
[1752141444710,1.49858541,671.39,669.82,0.25945172]
[1752141445009,1.49858541,671.38,669.82,0.25945172]
[1752141445305,1.49858541,671.37,669.82,0.25945172]
[1752141445509,0.25936954,671.48,669.82,0.25945172]
[1752141445806,1.49976313,671.47,669.82,0.25945172]
[1752141446003,0.25936954,671.48,669.82,0.25945172]
[1752141454211,0.25936954,671.48,669.84,5.52994749]
[1752141454711,0.25936954,671.48,669.85,5.52994749]
[1752141455212,0.25936954,671.48,669.86,5.52994749]
[1752141455710,0.25936954,671.48,669.89,5.52994749]
[1752141456313,0.25936954,671.48,669.9,5.52994749]
[1752141457315,0.25936954,671.48,669.98,5.52994749]
[1752141459313,0.25936954,671.48,669.99,5.52994749]
[1752141459916,0.25936954,671.48,669.92,5.52994749]
[1752141460318,0.25936954,671.48,669.93,5.52994749]
[1752141461517,0.25936954,671.48,669.95,5.52994749]
[1752141464116,0.25936954,671.48,670.0,5.52994749]
[1752141464616,0.25936954,671.48,670.02,5.52994749]
[1752141465618,0.25936954,671.48,670.01,5.52994749]
[1752141466720,0.25936954,671.48,670.0,5.52994749]
[1752141467118,0.25936954,671.48,670.04,5.52994749]
[1752141468220,0.25936954,671.48,669.91,5.52994749]
[1752141469322,0.25936954,671.48,669.86,5.52994749]
[1752141469720,0.25936954,671.48,669.91,5.52994749]
[1752141471025,0.25936954,671.48,669.85,5.52994749]
[1752141471426,0.25936954,671.48,669.83,5.52994749]
[1752141471926,0.25936954,671.48,669.84,5.52994749]
[1752141473027,0.25936954,671.48,669.82,5.78939921]
[1752141473528,0.25936954,671.48,669.83,5.52994749]
[1752141473929,0.25936954,671.48,669.82,5.78939921]
[1752141474527,0.25936954,671.48,669.82,0.25945172]
[1752141481339,0.25936954,671.48,669.82,5.78939921]
[1752141482339,0.25936954,671.48,669.84,5.52994749]
[1752141482936,0.25936954,671.48,669.87,5.52994749]
[1752141483440,0.25936954,671.48,669.88,5.52994749]
[1752141484442,0.25936954,671.48,670.09,5.52994749]
[1752141485637,0.25936954,671.48,670.04,5.52994749]
[1752141486640,0.25936954,671.48,670.08,5.52994749]
[1752141487537,0.25936954,671.48,670.1,5.52994749]
[1752141488137,0.25936954,671.48,670.0,5.52994749]
[1752141488740,0.25936954,671.48,670.12,5.52994749]
[1752141489342,0.25936954,671.48,670.1,5.52994749]
[1752141489740,0.25936954,671.48,669.82,0.25945172]
[1752141490744,0.25936954,671.48,670.07,5.52994749]
[1752141491344,0.25936954,671.48,670.05,5.52994749]
[1752141491840,0.25936954,671.48,670.09,5.52994749]
[1752141492240,0.25936954,671.48,670.1,5.52994749]
[1752141492740,0.25936954,671.48,669.82,0.25945172]
[1752141492741,0.25936954,671.48,670.14,5.52994749]
[1752141493440,0.25936954,671.48,670.12,5.52994749]
[1752141494442,0.25936954,671.48,670.13,5.52994749]
[1752141494943,0.25936954,671.48,670.17,5.52994749]
[1752141497747,0.25936954,671.48,670.18,5.52994749]
[1752141498749,0.25936954,671.48,670.19,5.52994749]
[1752141499248,0.25936954,671.48,670.23,5.52994749]
[1752141500749,0.25936954,671.48,670.28,5.52994749]
[1752141501250,0.25936954,671.48,670.39,5.52994749]
[1752141502444,0.25936954,671.48,670.28,5.52994749]
[1752141502850,0.25936954,671.48,670.29,5.52994749]
[1752141503546,0.25936954,671.48,670.3,5.52994749]
[1752141503951,0.25936954,671.48,670.31,5.52994749]
[1752141505050,0.25936954,671.48,670.32,5.52994749]
[1752141505451,1.5090573,671.47,670.28,5.52994749]
[1752141505655,0.25936954,671.48,670.28,5.52994749]
[1752141505852,1.5090573,671.47,670.28,5.52994749]
[1752141506154,0.25936954,671.48,670.27,5.52994749]
[1752141506353,1.50899597,671.47,670.27,5.52994749]
[1752141506653,1.50899597,671.46,670.26,5.52994749]
[1752141506853,1.50899597,671.45,670.26,5.52994749]
[1752141507053,1.50899597,671.44,670.26,5.52994749]
[1752141507251,0.25936954,671.48,670.26,5.52994749]
[1752141507454,1.50898085,671.47,670.26,5.52994749]
[1752141507653,1.50898085,671.46,670.27,5.52994749]
[1752141507854,1.50898085,671.45,670.27,5.52994749]
[1752141508052,0.25936954,671.48,670.38,5.52994749]
[1752141508251,1.50898085,671.47,670.38,5.52994749]
[1752141508451,1.50898085,671.46,670.38,5.52994749]
[1752141508756,1.50898085,671.45,670.38,5.52994749]
[1752141508956,0.25936954,671.48,670.38,5.52994749]
[1752141509156,1.50896647,671.47,670.38,5.52994749]
[1752141509452,1.50896647,671.46,670.38,5.52994749]
[1752141509757,1.50896647,671.45,670.23,5.52994749]
[1752141509957,1.50896647,671.44,670.23,5.52994749]
[1752141510154,1.50896647,671.43,670.21,5.52994749]
[1752141510457,1.50884028,671.42,670.21,5.52994749]
[1752141510655,1.50884028,671.42,669.82,0.25945172]
[1752141510656,1.50884979,671.41,670.12,5.52994749]
[1752141510855,0.25936954,671.48,670.12,5.52994749]
[1752141511053,1.50884979,671.47,670.12,5.52994749]
[1752141511257,1.50884979,671.46,670.1,5.52994749]
[1752141511455,1.50884979,671.45,670.1,5.52994749]
[1752141511652,0.25936954,671.48,670.1,5.52994749]
[1752141511653,1.50884979,671.44,670.1,5.52994749]
[1752141511857,1.50884979,671.43,670.1,5.52994749]
[1752141512158,1.50884979,671.42,670.1,5.52994749]
[1752141512454,1.50884979,671.41,670.1,5.52994749]
[1752141512659,0.25936954,671.48,670.1,5.52994749]
[1752141512857,1.50874077,671.47,670.11,5.52994749]
[1752141513060,1.50874077,671.46,670.11,5.52994749]
[1752141513356,1.50874077,671.45,670.11,5.52994749]
[1752141513659,1.50874077,671.44,670.11,5.52994749]
[1752141513863,1.50874077,671.43,670.11,5.52994749]
[1752141514159,1.50874077,671.42,670.11,5.52994749]
[1752141514356,0.25936954,671.48,670.11,5.52994749]
[1752141514656,1.50863998,671.47,670.11,5.52994749]
[1752141514859,1.50863998,671.46,670.11,5.52994749]
[1752141515060,1.50863998,671.45,670.11,5.52994749]
[1752141515358,0.25936954,671.48,670.18,5.52994749]
[1752141515965,1.5085392,671.47,670.17,5.52994749]
[1752141516160,0.25936954,671.48,670.17,5.52994749]
[1752141516364,0.25936954,671.48,670.3,5.52994749]
[1752141517361,1.50832339,671.47,670.3,5.52994749]
[1752141517665,0.25936954,671.48,670.3,5.52994749]
[1752141517866,1.50832339,671.47,670.3,5.52994749]
[1752141518061,0.25936954,671.48,670.3,5.52994749]
[1752141518562,0.25936954,671.48,670.29,5.52994749]
[1752141519163,0.25936954,671.48,670.3,5.52994749]
[1752141519562,0.25936954,671.48,670.29,5.52994749]
[1752141520464,1.50800967,671.47,670.29,5.52994749]
[1752141520666,1.50800967,671.46,669.99,7.74192649]
[1752141520868,1.50800967,671.45,669.99,7.74192649]
[1752141521166,1.50800967,671.44,669.99,5.52994749]
[1752141521465,1.50800967,671.43,669.99,5.52994749]
[1752141521765,1.50800967,671.42,669.88,5.52994749]
[1752141521970,0.25936954,671.48,669.88,5.52994749]
[1752141522170,1.50646894,671.47,669.88,5.52994749]
[1752141522371,1.50646894,671.46,669.88,5.52994749]
[1752141522671,1.50646894,671.45,669.87,5.52994749]
[1752141522967,1.50646894,671.44,669.87,5.52994749]
[1752141523265,1.50646894,671.43,669.87,5.52994749]
[1752141523470,1.50646894,671.42,669.87,5.52994749]
[1752141523667,0.25936954,671.48,669.86,5.52994749]
[1752141523870,1.50612806,671.47,669.86,5.52994749]
[1752141524166,1.50612806,671.46,669.86,5.52994749]
[1752141524371,1.50612806,671.45,669.82,5.78939921]
[1752141524669,1.50612806,671.44,669.82,5.78939921]
[1752141524869,1.50612806,671.43,669.82,5.78939921]
[1752141525066,1.50612806,671.42,669.82,5.78939921]
[1752141525271,0.25936954,671.48,669.82,0.25945172]
[1752141525468,1.50584283,671.47,669.82,0.25945172]
[1752141525671,1.50584283,671.46,669.82,0.25945172]
[1752141525874,1.50584283,671.45,669.82,0.25945172]
[1752141526071,1.50584283,671.44,669.82,0.25945172]
[1752141526271,1.50584283,671.43,669.82,0.25945172]
[1752141526474,0.25936954,671.48,669.82,0.25945172]
[1752141526475,1.50584283,671.42,669.82,0.25945172]
[1752141526769,1.50584283,671.41,669.82,0.25945172]
[1752141526972,1.50584283,671.4,669.82,0.25945172]
[1752141527173,1.50584283,671.39,669.82,0.25945172]
[1752141527368,1.50584283,671.38,669.82,0.25945172]
[1752141527571,1.50584283,671.37,669.82,0.25945172]
[1752141527771,1.50584283,671.36,669.82,0.25945172]
[1752141527972,0.25936954,671.48,669.82,0.25945172]
[1752141528174,1.50556285,671.47,669.82,0.25945172]
[1752141528472,1.50556285,671.46,669.82,0.25945172]
[1752141528677,1.50556285,671.45,669.82,0.25945172]
[1752141528878,1.50556285,671.44,669.82,0.25945172]
[1752141529078,1.50556285,671.43,669.82,0.25945172]
[1752141529279,1.50556285,671.42,669.82,0.25945172]
[1752141529480,1.50556285,671.41,669.82,0.25945172]
[1752141529681,1.50556285,671.4,669.82,0.25945172]
[1752141529879,1.50556285,671.39,669.82,0.25945172]
[1752141530077,1.50556285,671.38,669.82,0.25945172]
[1752141530280,1.50556285,671.37,669.82,0.25945172]
[1752141530477,0.25936954,671.48,669.82,0.25945172]
[1752141530680,1.50515733,671.47,669.82,0.25945172]
[1752141530878,1.50515733,671.46,669.82,0.25945172]
[1752141531180,1.50515733,671.45,669.82,0.25945172]
[1752141531377,1.50515733,671.44,669.82,0.25945172]
[1752141531578,1.50515733,671.43,669.88,5.52994749]
[1752141531781,1.50515733,671.42,669.88,5.52994749]
[1752141531982,1.50515733,671.41,669.88,5.52994749]
[1752141532182,1.50515733,671.4,669.88,5.52994749]
[1752141532480,1.50515733,671.39,669.88,5.52994749]
[1752141532677,1.50515733,671.38,669.88,5.52994749]
[1752141532881,0.25936954,671.48,669.88,5.52994749]
[1752141533081,1.5049401,671.47,669.88,5.52994749]
[1752141533279,1.5049401,671.46,669.88,5.52994749]
[1752141533580,1.5049401,671.45,669.88,5.52994749]
[1752141533778,1.5049401,671.44,669.88,5.52994749]
[1752141534079,1.5049401,671.43,669.88,5.52994749]
[1752141534382,1.5049401,671.42,669.93,5.52994749]
[1752141534580,1.5049401,671.41,669.93,5.52994749]
[1752141534784,1.5049401,671.4,669.93,5.52994749]
[1752141534983,1.5049401,671.39,669.93,5.52994749]
[1752141535181,0.25936954,671.48,669.93,5.52994749]
[1752141535385,1.50467597,671.47,669.93,5.52994749]
[1752141535581,1.50467597,671.46,669.93,5.52994749]
[1752141535886,1.50467597,671.45,670.06,5.52994749]
[1752141536081,1.50467597,671.44,670.06,5.52994749]
[1752141536285,0.25936954,671.48,670.11,5.52994749]
[1752141536482,1.50460224,671.47,670.11,5.52994749]
[1752141536686,1.50460224,671.46,670.11,5.52994749]
[1752141536889,1.50460224,671.45,670.15,5.52994749]
[1752141537188,0.25936954,671.48,670.15,5.52994749]
[1752141537488,1.50453504,671.47,670.23,5.52994749]
[1752141537786,0.25936954,671.48,670.33,5.52994749]
[1752141537989,1.50453504,671.47,670.33,5.52994749]
[1752141538187,0.25936954,671.48,670.33,5.52994749]
[1752141538386,1.5044741,671.47,670.34,5.52994749]
[1752141538585,0.25936954,671.48,670.34,5.52994749]
[1752141538783,1.5044741,671.47,670.34,5.52994749]
[1752141538986,0.25936954,671.48,670.35,5.52994749]
[1752141539289,1.5044741,671.47,670.35,5.52994749]
[1752141539489,0.25936954,671.48,670.35,5.52994749]
[1752141539684,1.50444618,671.47,670.35,5.52994749]
[1752141539886,0.25936954,671.48,670.35,5.52994749]
[1752141540088,1.50446181,671.47,670.35,5.52994749]
[1752141540291,0.25936954,671.48,670.35,5.52994749]
[1752141540496,1.50446181,671.47,670.37,5.52994749]
[1752141540689,0.25936954,671.48,670.37,5.52994749]
[1752141540887,1.50446176,671.47,670.37,5.52994749]
[1752141541090,0.25936954,671.48,670.37,5.52994749]
[1752141541592,0.25936954,671.48,670.4,5.52994749]
[1752141542490,0.25936954,671.48,670.42,5.52994749]
[1752141543091,0.25936954,671.48,670.41,5.52994749]
[1752141543595,1.50440834,671.47,670.38,5.52994749]
[1752141543893,0.25936954,671.48,670.38,5.52994749]
[1752141544094,1.50440834,671.47,670.38,5.52994749]
[1752141544291,0.25936954,671.48,670.38,5.52994749]
[1752141544589,1.50441099,671.47,670.38,5.52994749]
[1752141544794,0.25936954,671.48,670.35,5.52994749]
[1752141544991,1.50441099,671.47,670.35,5.52994749]
[1752141545191,0.25936954,671.48,670.35,5.52994749]
[1752141545493,1.50442116,671.47,670.35,5.52994749]
[1752141545693,1.50442116,671.46,670.26,5.52994749]
[1752141545891,1.50442116,671.45,670.26,5.52994749]
[1752141546094,1.50442116,671.44,670.26,5.52994749]
[1752141546294,1.50442116,671.43,670.26,5.52994749]
[1752141546491,1.50442116,671.42,670.26,5.52994749]
[1752141546791,1.50442116,671.41,670.26,5.52994749]
[1752141546994,1.50442116,671.4,670.26,5.52994749]
[1752141547193,1.50442116,671.39,670.27,5.52994749]
[1752141547390,1.50442116,671.38,670.27,5.52994749]
[1752141547591,1.50442116,671.37,670.27,5.52994749]
[1752141547796,0.25936954,671.48,670.22,5.52994749]
[1752141547995,1.50446432,671.47,670.22,5.52994749]
[1752141548300,1.50446432,671.46,670.26,5.52994749]
[1752141548493,1.50446432,671.45,670.26,5.52994749]
[1752141548692,1.50446432,671.44,670.26,5.52994749]
[1752141548996,1.50446432,671.43,670.26,5.52994749]
[1752141549193,1.50446432,671.42,670.26,5.52994749]
[1752141549392,1.50446432,671.41,670.25,5.52994749]
[1752141549691,1.50446432,671.4,670.25,5.52994749]
[1752141549893,1.50446432,671.39,670.25,5.52994749]
[1752141550093,1.50446432,671.38,670.25,5.52994749]
[1752141550296,1.50446432,671.37,670.25,5.52994749]
[1752141550496,0.25936954,671.48,670.26,5.52994749]
[1752141550696,1.50458469,671.47,670.26,5.52994749]
[1752141550892,1.50458469,671.46,670.26,5.52994749]
[1752141551093,1.50458469,671.45,670.26,5.52994749]
[1752141551291,1.50458469,671.44,670.26,5.52994749]
[1752141551496,1.50458469,671.43,670.25,5.52994749]
[1752141551694,1.50458469,671.42,670.25,5.52994749]
[1752141551894,1.50458469,671.41,670.25,5.52994749]
[1752141552093,1.50458469,671.4,670.25,5.52994749]
[1752141552297,1.50458469,671.39,670.25,5.52994749]
[1752141552597,1.50458469,671.38,670.25,5.52994749]
[1752141552797,1.50458469,671.37,670.25,5.52994749]
[1752141553097,0.25936954,671.48,670.25,5.52994749]
[1752141553297,1.50455599,671.47,670.25,5.52994749]
[1752141553495,1.50455599,671.46,670.27,5.52994749]
[1752141553699,1.50455599,671.45,670.27,5.52994749]
[1752141553999,1.50455599,671.44,670.3,5.52994749]
[1752141554195,1.50455599,671.43,670.3,5.52994749]
[1752141554399,1.50455599,671.42,670.3,5.52994749]
[1752141554596,1.50455599,671.41,670.31,5.52994749]
[1752141554895,1.50455599,671.4,670.31,5.52994749]
[1752141555099,1.50455599,671.39,670.31,5.52994749]
[1752141555296,1.50455599,671.38,670.31,5.52994749]
[1752141555600,0.25936954,671.48,670.33,5.52994749]
[1752141555798,1.5047514,671.47,670.33,5.52994749]